Cogmind - Beta 12 *** ADVENTURER MODE // 2023.05.08 @ 01:42:39 Player: Deep Beef Result: Destroyed by Y-54 Guardian with Gatling Laser Performance ------------- Evolutions (3) 1500 Regions Visited (10) 2000 Robots Destroyed (169) 845 Value Destroyed (9265) 9265 Prototype IDs (6) 120 Alien Tech Used (0) 0 Bonus (2806) 2806 TOTAL SCORE: 16536 Bonus ------- High Alert Combat Kills 1914 Follower Combat Kills 196 Entered Garrisons 600 Aligned with FarCom 300 Friendly Fire -204 Cogmind --------- Core Integrity 0/700 Matter 235/300 Energy 23/100 System Corruption 5% Temperature Cool (21) Movement Treading (240) Ox1 Location -7/Garrison Parts ------- > --- POWER (2) -------- (None) > --- PROPULSION (3) --- Improved Heavy Treads > --- UTILITY (6) ------ Cargo Storage Unit Gravity Neutralizer Improved Melee Analysis Suite Improved Melee Analysis Suite Improved Light Armor Plating > --- WEAPON (2) ------- Gatling Laser > --- INVENTORY (30) --- Improved Heavy Treads Improved Heavy Treads Armored Huge Wheel Armored Huge Wheel Advanced Heat Sink Cargo Storage Unit Advanced Weight Redist. System Trap Scanner Target Analyzer Hardened Heavy Armor Plating Medium Reflective Plating Improved Shield Generator Skeleton Box Proton Missile Launcher Proton Missile Launcher Peak State ------------ > --- POWER ------------ Light Nuclear Core Micro Nuclear Core > --- PROPULSION ------- Improved Carbon-fiber Leg Advanced VSS Leg Advanced VSS Leg > --- UTILITY ---------- High-capacity Storage Unit Improved Melee Analysis Suite Improved Melee Analysis Suite Improved Melee Analysis Suite Improved Core Shielding System Restoration Module > --- WEAPON ----------- Segregator Spear > --- INVENTORY -------- Micro Nuclear Core Armored Huge Wheel Armored Huge Wheel Armored Huge Wheel Advanced Weight Redist. System Trap Scanner Target Analyzer Hardened Heavy Armor Plating Improved Light Armor Plating Medium Reflective Plating Improved Shield Generator System Shield Skeleton Box Gauss Cannon Proton Missile Launcher Proton Missile Launcher [Rating: 63] Favorites ----------- Power Light Nuclear Core Engine Improved Ion Engine Power Core Light Nuclear Core Propulsion Aluminum Leg Treads Armored Treads Leg Aluminum Leg Wheel Compact Wheel Utility Large Storage Unit Device Advanced Weight Redist. System Storage Large Storage Unit Processor Improved Melee Analysis Suite Hackware System Shield Protection Hardened Light Armor Plating Weapon Gauss Rifle Energy Gun Gatling Laser Ballistic Gun Gauss Rifle Ballistic Cannon Gauss Cannon Launcher Missile Launcher Slashing Weapon Segregator Piercing Weapon Spear Build | -11 -10 -10 -10 -9 -8 -8 -7 -7 -7 -7 ------- Run | Jun Mat Min Exi Min Mat Gar Fac Gar Fac Gar Slots Evolved 6 | . . . . . 4 . 2 . . . Power 1 | . . . . . . . 1 . . . Propulsion 1 | . . . . . 1 . . . . . Utility 4 | . . . . . 3 . 1 . . . Weapon . | . . . . . . . . . . . Parts Attached 158 | 6 11 2 3 3 15 29 19 21 28 21 Power 28 | 1 1 1 . . 1 3 3 4 5 9 Engine 8 | 1 1 1 . . 1 1 1 . . 2 Core 20 | . . . . . . 2 2 4 5 7 Reactor . | . . . . . . . . . . . Propulsion 37 | 2 2 1 . . 6 4 3 7 9 3 Treads 11 | . . . . . 6 4 . . . 1 Leg 20 | . . . . . . . 3 7 9 1 Wheel 6 | 2 2 1 . . . . . . . 1 Hover . | . . . . . . . . . . . Flight . | . . . . . . . . . . . Utility 45 | 1 2 . 2 1 4 8 9 5 9 4 Device 16 | . . . 1 . 3 1 5 3 2 1 Storage 6 | 1 1 . . . . 1 . . 2 1 Processor 11 | . . . . . . 4 2 . 5 . Hackware 2 | . . . . . . . 1 . . 1 Protection 10 | . 1 . 1 1 1 2 1 2 . 1 Artifact . | . . . . . . . . . . . Weapon 48 | 2 6 . 1 2 4 14 4 5 5 5 Energy Gun 2 | . . . . . . . 1 . . 1 Energy Cannon . | . . . . . . . . . . . Ballistic Gun 32 | 2 6 . 1 1 4 10 2 4 2 . Ballistic Cannon 3 | . . . . . . . . . 1 2 Launcher 5 | . . . . 1 . 3 1 . . . Special Weapon . | . . . . . . . . . . . Impact Weapon . | . . . . . . . . . . . Slashing Weapon 5 | . . . . . . 1 . 1 1 2 Piercing Weapon 1 | . . . . . . . . . 1 . Special Melee Weapon . | . . . . . . . . . . . Unidentified Prototypes 3 | . . . 1 . . . . . 1 1 Parts Lost 43 | . . 1 . . . 8 10 3 4 17 Power 19 | . . . . . . 2 2 3 3 9 Propulsion 10 | . . 1 . . . 3 2 . . 4 Utility 10 | . . . . . . 3 5 . . 2 Weapon 4 | . . . . . . . 1 . 1 2 Highest Loss Streak 9 | . . 1 . . . 1 9 2 2 7 To Critical Strikes 1 | . . . . . . . . . . 1 Average Slot Usage (%) 93 | . 96 89 100 100 99 92 79 92 97 89 Engine 5 | . 14 14 14 14 9 6 4 . . 2 Core 5 | . . . . . . 1 7 8 13 10 Treads 8 | . . . . . 25 23 11 . . . Leg 8 | . . . . . . . 3 22 23 11 Wheel 5 | . 27 18 28 28 1 . . . . 4 Device 12 | . . . . . 26 14 15 18 11 . Storage 8 | . 14 14 14 14 9 9 7 7 7 7 Processor 8 | . . . . . . 8 7 7 16 29 Protection 8 | . 11 14 14 14 9 10 . 10 9 1 Ballistic Gun 14 | . 28 28 28 28 18 16 13 13 6 . Slashing Weapon 1 | . . . . . . . . . 3 4 Piercing Weapon 1 | . . . . . . . . . 3 6 Naked Turns . | . . . . . . . . . . . Heaviest Build 163 | 14 38 38 38 38 40 48 47 50 59 163 Greatest Support 87 | 26 26 32 32 32 71 62 49 35 63 87 Greatest Overweight (x) 12 | . 2 2 1 1 1 12 12 2 1 5 Average Overweight (x) . | . . 1 1 1 . . . 1 . 1 Largest Inventory Capacity 30 | 8 15 15 15 15 15 15 15 15 20 30 Average Capacity 15 | 7 14 15 15 15 15 15 15 15 16 20 Most Carried 26 | 3 15 15 15 15 15 15 14 15 20 26 Average Carried 14 | 1 12 14 15 14 14 12 10 12 15 19 Final Capacity 30 | 8 15 15 15 15 15 15 15 15 20 30 Final Carried 21 | 3 15 15 15 15 14 9 9 15 20 21 Class Distribution -------------------- 34% | Mutant 25% | Scavenger-Mutant 19% | Skirmisher 9% | Scavenger-Skirmisher 8% | Hacker-Mutant Dominant Class ---------------- Mutant | -10/Materials Mutant | -10/Mines Mutant | -10/Exiles Mutant | -9/Mines Skirmisher | -8/Materials Mutant | -8/Garrison Hacker-Mutant | -7/Factory Scavenger-Skirmisher | -7/Garrison Scavenger-Mutant | -7/Factory Hacker-Mutant | -7/Garrison Resources | -11 -10 -10 -10 -9 -8 -8 -7 -7 -7 -7 ----------- Run | Jun Mat Min Exi Min Mat Gar Fac Gar Fac Gar Matter Collected 4940 | 219 280 199 . 107 676 1448 548 718 535 210 Remotely . | . . . . . . . . . . . Salvage Created 6702 | . 341 288 . 31 1276 1274 865 658 651 1318 Parts 362 | . 24 21 . 3 71 75 34 32 46 56 Haulers Intercepted 4 | . . . . . 2 . . . 2 . Recyclers Shooed . | . . . . . . . . . . . Parts Field Recycled . | . . . . . . . . . . . Retrieved Matter . | . . . . . . . . . . . Parts Self-Destructed . | . . . . . . . . . . . Prevented . | . . . . . . . . . . . Kills | -11 -10 -10 -10 -9 -8 -8 -7 -7 -7 -7 ------- Run | Jun Mat Min Exi Min Mat Gar Fac Gar Fac Gar Combat Hostiles Destroyed 148 | . 8 8 . 2 26 37 17 18 11 21 Melee 27 | . . . . . . . . . 7 20 Guns 115 | . 8 8 . 2 26 35 15 18 3 . Cannons 2 | . . . . . . . . . 1 1 AOE 3 | . . . . . . 1 2 . . . Classes Destroyed 17 | . 4 2 . . 2 5 1 2 1 . Worker 6 | . . 1 . . 2 . 1 . 2 . Tunneler 1 | . 1 . . . . . . . . . Hauler 4 | . . . . . 2 . . . 2 . Recycler 2 | . . . . . 2 . . . . . Mechanic 1 | . . . . . . . 1 . . . Operator 1 | . . . . . . . . . 1 . Watcher 5 | . 3 . . . . . . . 2 . Swarmer 45 | . 3 3 . 2 7 12 . 2 2 14 Cutter 5 | . . . . . . . . 3 . 2 Saboteur 1 | . . . . . . 1 . . . . Grunt 56 | . 5 4 . . 13 9 12 10 . 3 Brawler 5 | . . . . . . 3 2 . . . Sentry 17 | . . 1 . . 6 5 1 1 1 2 Specialist 2 | . . . . . . . . 2 . . Hunter 7 | . . . . . . 5 1 . 1 . Programmer 9 | . . . . . . 1 1 . 7 . Behemoth 1 | . . . . . . 1 . . . . Infiltrator 1 | . . . . . . . . 1 . . Best Kill Streak 10 | . 4 5 . 2 4 6 6 10 3 7 Combat Bots Only 10 | . 3 5 . 2 4 6 6 10 2 7 Max Kills in Single Turn 2 | . 1 1 . 1 2 2 2 2 2 1 Gunslinging 1 | . . . . . . 1 . . . . Exploded 2 | . . . . . . 1 2 . . . Melee 1 | . . . . . . . . . 1 1 Uniques/NPCs Destroyed . | . . . . . . . . . . . Combat | -11 -10 -10 -10 -9 -8 -8 -7 -7 -7 -7 -------- Run | Jun Mat Min Exi Min Mat Gar Fac Gar Fac Gar Damage Taken 6501 | . 167 281 . 9 646 1610 735 907 594 1552 Core 1040 | . 8 43 . . 36 247 77 155 86 388 Absorbed by Shields . | . . . . . . . . . . . Redirected to Shielding 65 | . . . . . . . . 16 31 18 Core Remaining (%) 75 | 100 . . . 79 . 48 . . . . Volleys Fired 375 | . 21 15 . 3 67 135 43 62 24 5 Largest 2 | . 2 2 . 2 2 2 2 2 2 1 Hottest 108 | . 46 46 . 46 50 64 108 108 76 48 Shots Fired 694 | . 42 30 . 6 135 230 81 122 42 6 Gun 651 | . 42 30 . 6 135 202 78 122 36 . Cannon 12 | . . . . . . . . . 6 6 Launcher 31 | . . . . . . 28 3 . . . Special . | . . . . . . . . . . . Kinetic 638 | . 42 30 . 6 135 202 76 99 42 6 Thermal 25 | . . . . . . . 2 23 . . Explosive 31 | . . . . . . 28 3 . . . Electromagnetic . | . . . . . . . . . . . Robot Hit Streak 38 | . 12 14 . 13 26 38 32 19 14 1 Robot Miss Streak 7 | . 1 1 . . 3 2 1 7 3 1 Penetration Max 1 | . . . . . . 1 1 1 . . Secondary Targets 13 | . . 2 . . 1 7 1 2 . . Max Gunslinging Chain 1 | . . 1 . . 1 1 1 1 . . Shots Hit Robots 566 | . 35 24 . 6 111 127 74 61 56 72 Core Hits 358 | . 19 14 . 3 70 83 43 52 37 37 Critical Kills 4 | . . . . . 1 2 1 . . . Critical Parts Destroyed 4 | . . . . . 2 2 . . . . Critical Strikes 14 | . . . . . 3 4 1 . 3 3 Destroy 8 | . . . . . 3 4 1 . . . Impale 6 | . . . . . . . . . 3 3 Melee Attacks 179 | . . . . . . 7 . 3 23 146 Thermal 46 | . . . . . . 7 . 3 7 29 Impact . | . . . . . . . . . . . Slashing . | . . . . . . . . . . . Piercing 133 | . . . . . . . . . 16 117 Sneak Attacks 6 | . . . . . . . . . 5 1 Combat Hostiles 3 | . . . . . . . . . 2 1 Follow-up Attacks 10 | . . . . . . . . . 2 8 Damage Inflicted 14489 | . 504 367 . 68 1964 3703 2433 1400 1438 2612 Guns 8860 | . 504 367 . 68 1964 2243 1700 1296 718 . Cannons 155 | . . . . . . . . . 124 31 Explosions 2297 | . . . . . . 1460 733 104 . . Melee 3177 | . . . . . . . . . 596 2581 Ramming . | . . . . . . . . . . . Kinetic 8549 | . 504 367 . 68 1964 2243 1646 884 842 31 Thermal 466 | . . . . . . . 54 412 . . Explosive 2230 | . . . . . . 1460 666 104 . . Electromagnetic 67 | . . . . . . . 67 . . . Impact . | . . . . . . . . . . . Slashing . | . . . . . . . . . . . Piercing 3177 | . . . . . . . . . 596 2581 Highest Corruption 10 | . 1 1 1 1 1 1 7 7 10 5 Average Corruption 3 | . 1 1 1 1 1 1 6 7 8 5 Corruption Purged 5 | . . . . . . . . . 5 . Corruption Blocked . | . . . . . . . . . . . Effects 223 | . 3 9 3 3 12 19 5 64 65 40 Message Errors 64 | . . . 1 . 3 4 3 22 17 14 Matter Fused 45 | . 1 5 1 2 2 4 1 11 13 5 Heat Flow Errors 28 | . . 1 . 1 2 2 . 6 9 7 Energy Discharges 33 | . . 1 . . . 3 . 12 13 4 Parts Rejected 2 | . . . . . . . . 2 . . Parts Fused 1 | . . . . . 1 . . . . . Data Loss (minor) 25 | . 2 1 1 . 2 3 1 4 6 5 Data Loss (major) 12 | . . 1 . . 1 2 . 4 2 2 Misfires 5 | . . . . . 1 . . 2 1 1 Alerts 6 | . . . . . . . . 1 3 2 Weapon Failures 2 | . . . . . . 1 . . 1 . Overload Shots . | . . . . . . . . . . . Overflow Damage 208 | . . . . . . . 6 . 172 30 Projectiles . | . . . . . . . . . . . Explosions 6 | . . . . . . . 6 . . . Melee 202 | . . . . . . . . . 172 30 Knockbacks . | . . . . . . . . . . . Impact . | . . . . . . . . . . . Kinetic . | . . . . . . . . . . . Secondary . | . . . . . . . . . . . Self-Inflicted Damage 113 | . . . . . . 32 . 39 42 . Shots 4 | . . . . . . 2 . 1 1 . Rammed . | . . . . . . . . . . . Targets Rammed . | . . . . . . . . . . . Kicked . | . . . . . . . . . . . Crushed . | . . . . . . . . . . . Highest Temperature 272 | . 122 249 . 147 263 216 54 256 272 252 Average Temperature 54 | . 36 59 . 47 26 42 17 57 99 92 Received Heat Transfer 2433 | . 138 90 . . 393 675 360 351 24 402 Siege Activations . | . . . . . . . . . . . Robots Corrupted . | . . . . . . . . . . . Combat Hostiles . | . . . . . . . . . . . Parts Fried . | . . . . . . . . . . . Impact Corruptions . | . . . . . . . . . . . Robots Melted . | . . . . . . . . . . . Combat Hostiles . | . . . . . . . . . . . Parts Melted 1 | . . . . . . . 1 . . . Heat Transferred 1075 | . . . . . . . 125 950 . . Parts Sabotaged 9 | . . . . . . 9 . . . . Parts Stolen . | . . . . . . . . . . . Parts Stripped . | . . . . . . . . . . . Power Chain Reactions . | . . . . . . . . . . . Missiles Intercepted . | . . . . . . . . . . . Alert | -11 -10 -10 -10 -9 -8 -8 -7 -7 -7 -7 ------- Run | Jun Mat Min Exi Min Mat Gar Fac Gar Fac Gar Peak Influence 2310 | . 201 189 . 103 277 2310 1283 1884 901 1226 Initial 1051 | . . . . . . 114 1051 791 856 317 Average 693 | . 69 98 . 80 113 933 1076 1302 670 709 Maximum Alert Level 5 | . 1 . . . 1 5 4 5 3 4 Low Security (%) 27 | 100 98 100 . 100 83 5 . . . . Level 1 8 | . 1 . . . 16 21 . . . 8 Level 2 15 | . . . . . . 15 . . 51 41 Level 3 26 | . . . . . . 26 77 22 48 46 Level 4 13 | . . . . . . 10 22 59 . 3 Level 5 7 | . . . . . . 20 . 17 . . High Security . | . . . . . . . . . . . Max Security . | . . . . . . . . . . . Squads Dispatched 23 | . 1 . . . 5 . 8 . 9 . Investigation 5 | . 1 . . . 3 . . . 1 . Extermination 8 | . . . . . . . 2 . 6 . Reinforcement 5 | . . . . . 1 . 2 . 2 . Assault 1 | . . . . . . . 1 . . . Garrison 4 | . . . . . 1 . 3 . . . Intercept . | . . . . . . . . . . . Searches Triggered . | . . . . . . . . . . . Construction Impeded 1 | . . . . . . . 1 . . . Haulers Reinforced 1 | . . . . . . . . . 1 . Active Scanning Responses . | . . . . . . . . . . . Cargo Convoy Interrupts . | . . . . . . . . . . . Stealth | -11 -10 -10 -10 -9 -8 -8 -7 -7 -7 -7 --------- Run | Jun Mat Min Exi Min Mat Gar Fac Gar Fac Gar Distress Signals 3 | . . . . . 1 . 1 . 1 . Communications Jammed . | . . . . . . . . . . . Distress Signals . | . . . . . . . . . . . Times Spotted 196 | . 12 10 . 4 37 46 23 23 14 27 Peak Tracking Total 10 | . 3 5 . 4 8 10 4 5 4 4 Tactical Retreats 14 | . . 1 . . 2 5 . 1 1 4 Traps | -11 -10 -10 -10 -9 -8 -8 -7 -7 -7 -7 ------- Run | Jun Mat Min Exi Min Mat Gar Fac Gar Fac Gar Traps Triggered 23 | . 1 . . . 1 3 1 6 . 11 Indirectly . | . . . . . . . . . . . Trap Hack Attempts . | . . . . . . . . . . . Triggered . | . . . . . . . . . . . Disarmed . | . . . . . . . . . . . Reprogrammed 8 | . 8 . . . . . . . . . Reused . | . . . . . . . . . . . Traps Extracted . | . . . . . . . . . . . Installed . | . . . . . . . . . . . Triggered . | . . . . . . . . . . . Most Traps Carried 1 | . . . . 1 1 1 . . . . Machines | -11 -10 -10 -10 -9 -8 -8 -7 -7 -7 -7 ---------- Run | Jun Mat Min Exi Min Mat Gar Fac Gar Fac Gar Machines Disabled 32 | . . 1 . 1 . 8 6 7 3 6 Max in Single Turn 3 | . . 1 . . . 2 3 2 2 1 Garrison Relay 15 | . . . . . . 6 . 4 . 5 Phase Generator 2 | . . . . . . 1 . 1 . . Machines Repaired . | . . . . . . . . . . . Machines Sabotaged . | . . . . . . . . . . . Overloaded Fab Kills . | . . . . . . . . . . . Hacking | -11 -10 -10 -10 -9 -8 -8 -7 -7 -7 -7 --------- Run | Jun Mat Min Exi Min Mat Gar Fac Gar Fac Gar Machines Accessed 35 | . 8 . 1 . 9 4 1 1 10 1 Terminals 27 | . 8 . . . 7 4 . 1 6 1 Fabricators . | . . . . . . . . . . . Repair Stations . | . . . . . . . . . . . Recycling Units 1 | . . . . . . . . . 1 . Scanalyzers 2 | . . . . . 1 . . . 1 . Garrison Access 4 | . . . . . 1 . 1 . 2 . Total Hacks 123 | . 29 . 23 . 30 12 1 3 23 2 Successful 87 | . 17 . 23 . 26 4 1 2 14 . Failed 36 | . 12 . . . 4 8 . 1 9 2 Catastrophic 2 | . . . . . . 1 . . 1 . Database Lockouts . | . . . . . . . . . . . Manual 42 | . 15 . 1 . 13 3 . 2 8 . Terminals 89 | . 29 . . . 27 12 . 3 16 2 Fabricators . | . . . . . . . . . . . Repair Stations . | . . . . . . . . . . . Recycling Units 1 | . . . . . . . . . 1 . Scanalyzers 6 | . . . . . 2 . . . 4 . Garrison Access 4 | . . . . . 1 . 1 . 2 . Terminal Hacks 53 | . 9 . 23 . 14 3 . 1 3 . Record 23 | . . . 23 . . . . . . . Robot Analysis 2 | . . . . . 2 . . . . . Prototype ID Bank 1 | . . . . . 1 . . . . . Open Door 1 | . . . . . . 1 . . . . Open DSF 2 | . . . . . . . . . 2 . Branch Access Points 4 | . 2 . . . 2 . . . . . Emergency Access Points 5 | . . . . . 2 1 . 1 1 . Alert Level 1 | . . . . . 1 . . . . . Unreport Threat 1 | . . . . . 1 . . . . . Locate Traps 3 | . 2 . . . 1 . . . . . Reprogram Traps 3 | . 3 . . . . . . . . . Hauler Manifests 3 | . 2 . . . 1 . . . . . Zone Layout 3 | . . . . . 3 . . . . . Garrison Registry 1 | . . . . . . 1 . . . . Fabricator Hacks . | . . . . . . . . . . . Repair Station Hacks . | . . . . . . . . . . . Recycling Unit Hacks 1 | . . . . . . . . . 1 . Report Inventory 1 | . . . . . . . . . 1 . Scanalyzer 6 | . . . . . 2 . . . 4 . Insert Component 2 | . . . . . 1 . . . 1 . Analyze 4 | . . . . . 1 . . . 3 . Garrison Access Hacks 4 | . . . . . 1 . 1 . 2 . Unlock Access 4 | . . . . . 1 . 1 . 2 . Unauthorized Hacks 23 | . 8 . . . 9 1 . 1 4 . Terminals 23 | . 8 . . . 9 1 . 1 4 . Assimilate 3 | . . . . . 2 . . . 1 . Botnet 20 | . 8 . . . 7 1 . 1 3 . Fabricators . | . . . . . . . . . . . Repair Stations . | . . . . . . . . . . . Recycling Units . | . . . . . . . . . . . Scanalyzers . | . . . . . . . . . . . Garrison Access . | . . . . . . . . . . . Data Cores Recovered . | . . . . . . . . . . . Used . | . . . . . . . . . . . Hacking Detections 29 | . 7 . . . 8 4 1 1 7 1 Full Trace Events 3 | . 1 . . . 1 . . . 1 . Feedback Events 2 | . 1 . . . 1 . . . . . Corruption 2 | . 1 . . . 1 . . . . . Feedback Blocked . | . . . . . . . . . . . Robot Schematics Acquired . | . . . . . . . . . . . Robots Built . | . . . . . . . . . . . Authchips . | . . . . . . . . . . . Time . | . . . . . . . . . . . Total Robot Build Rating . | . . . . . . . . . . . Part Schematics Acquired 1 | . . . . . 1 . . . . . Parts Built . | . . . . . . . . . . . Authchips . | . . . . . . . . . . . Time . | . . . . . . . . . . . Total Part Build Rating . | . . . . . . . . . . . Parts Repaired . | . . . . . . . . . . . Time . | . . . . . . . . . . . Parts Recycled . | . . . . . . . . . . . Recycled Matter . | . . . . . . . . . . . Retrieved Matter . | . . . . . . . . . . . Retrieved Components . | . . . . . . . . . . . Parts Scanalyzed 2 | . . . . . 1 . . . 1 . Part Schematics Acquired 1 | . . . . . 1 . . . . . Parts Damaged . | . . . . . . . . . . . Bothacking | -11 -10 -10 -10 -9 -8 -8 -7 -7 -7 -7 ------------ Run | Jun Mat Min Exi Min Mat Gar Fac Gar Fac Gar Used RIF Installer . | . . . . . . . . . . . Robots Hacked . | . . . . . . . . . . . Non-combat . | . . . . . . . . . . . Combat . | . . . . . . . . . . . Robot Hacks Applied . | . . . . . . . . . . . Relay Couplers Released 60 | . . . . . . 25 . 15 . 20 Machine Destruction 56 | . . . . . . 21 . 15 . 20 Programmers 4 | . . . . . . 4 . . . . Fabnet Peak Effective % . | . . . . . . . . . . . Robots Rewired 5 | . . . . . . 5 . . . . Allies Hacked . | . . . . . . . . . . . Hacks Repelled . | . . . . . . . . . . . Allies | -11 -10 -10 -10 -9 -8 -8 -7 -7 -7 -7 -------- Run | Jun Mat Min Exi Min Mat Gar Fac Gar Fac Gar Total Allies 13 | . . 3 . 1 . 5 . 4 . . Largest Group 3 | . . 3 3 3 1 2 2 2 . . Highest-Rated Group 160 | . . 40 40 55 8 70 70 160 . . Highest-Rated Ally 80 | . . 16 16 31 8 39 39 80 . . Total Orders . | . . . . . . . . . . . Ally Attacks 50 | . . 3 . 9 1 19 3 15 . . Total Damage 808 | . . 40 . 55 8 204 61 440 . . Kills 11 | . . 1 . 2 . 3 1 4 . . Allies Corrupted . | . . . . . . . . . . . Allies Melted . | . . . . . . . . . . . Intel | -11 -10 -10 -10 -9 -8 -8 -7 -7 -7 -7 ------- Run | Jun Mat Min Exi Min Mat Gar Fac Gar Fac Gar Robot Analysis Total 2 | . . . . . 2 . . . . . Derelict Logs Recovered 2 | . . 1 . 1 . . . . . . Drone Launches . | . . . . . . . . . . . Drone Recoveries . | . . . . . . . . . . . Exploration | -11 -10 -10 -10 -9 -8 -8 -7 -7 -7 -7 ------------- Run | Jun Mat Min Exi Min Mat Gar Fac Gar Fac Gar Turns Passed 13538 | 47 836 668 434 501 1771 2836 753 2187 1951 1554 Spaces Moved 7013 | 40 690 492 373 396 727 1301 302 939 1121 632 Core 5 | 1 . . . . . 2 2 . . . Treads 2238 | . . . . . 681 1299 256 . . 2 Legs 2294 | . . . . . . . 44 939 1121 190 Wheels 2476 | 39 690 492 373 396 46 . . . . 440 Hover . | . . . . . . . . . . . Flight . | . . . . . . . . . . . Fastest Speed 50 | 50 90 105 115 115 100 157 165 190 100 115 Average Speed 147 | 89 104 124 115 115 155 164 173 190 143 143 Slowest Speed 650 | 100 130 130 115 115 161 650 650 260 190 240 Overloaded Moves . | . . . . . . . . . . . Propulsion Burnouts . | . . . . . . . . . . . Robots Hopped . | . . . . . . . . . . . Cave-ins Triggered . | . . . . . . . . . . . Exploration Rate (%) 62 | 3 97 92 86 66 57 89 8 97 34 62 Regions Visited 10 Branch Regions 3 Pre-discovered Areas 1 | . . . 1 . . . . . . . Known Exits Taken 5 | . 1 . . 1 1 . 1 . 1 . Unknown Exits Taken 3 | 1 . 1 1 . . . . . . . Scrap Searched 2 | . . 1 . 1 . . . . . . Spaces Dug 52 | . . . . . . 36 . . 1 15 Terrain Destroyed 380 | . . . . . . 234 8 80 43 15 Melee 16 | . . . . . . . . . 1 15 Projectile 10 | . . . . . . 4 1 4 1 . AOE 353 | . . . . . . 230 7 75 41 . Terrain Rammed . | . . . . . . . . . . . Walls Destroyed . | . . . . . . . . . . . Machines Disabled . | . . . . . . . . . . . Actions | -11 -10 -10 -10 -9 -8 -8 -7 -7 -7 -7 --------- Run | Jun Mat Min Exi Min Mat Gar Fac Gar Fac Gar Total 9271 | 48 769 526 377 435 1251 1752 448 1203 1394 1068 Wait 1276 | . 20 16 . 30 415 240 67 137 155 196 Move 7006 | 39 689 491 372 395 727 1300 302 938 1121 632 Hop . | . . . . . . . . . . . Pick Up 114 | 3 18 1 1 2 12 14 16 14 19 14 Fast Attach 24 | 6 5 . . . 1 . . 3 7 2 Attach 56 | . . 1 . . 3 16 15 4 3 14 Detach 1 | . . . . . . 1 . . . . Swap 78 | . 6 1 3 3 11 13 4 14 18 5 Drop 80 | . 10 1 1 2 15 7 1 8 28 7 Fire 375 | . 21 15 . 3 67 135 43 62 24 5 Melee 156 | . . . . . . 7 . 3 19 127 Ram . | . . . . . . . . . . . Kick . | . . . . . . . . . . . Crush . | . . . . . . . . . . . Escape Stasis 86 | . . . . . . . . 20 . 66 Rewire 19 | . . . . . . 19 . . . . Trap . | . . . . . . . . . . . Miscellaneous . | . . . . . . . . . . . Route ------- -11/Junkyard -10/Materials (discovered 4 exits: [*Mat x2] / *Min x2) -10/Mines (discovered 3 exits: [*Mat x2] / *Exi) -10/Exiles -9/Mines (discovered 2 exits: *Mat x2) -8/Materials (discovered 4 exits: *Fac x2 / Sto / Gar) -8/Garrison (discovered 4 exits: *Fac x3 / [*Mat]) -7/Factory -7/Garrison (discovered 4 exits: [*Fac x3] / *Fac) -7/Factory (discovered 4 exits: [*Fac x2] / Gar / Gar) -7/Garrison (discovered 2 exits: [*Fac x2]) History --------- Turn | Location | Event 18 | -11/Junkyard | Discovered new exit (range 15) 48 | -11/Junkyard | Entered Materials 52 | -10/Materials | Identified exit to Mines 342 | -10/Materials | Build established: Mutant 415 | -10/Materials | Discovered new exit (range 16) 592 | -10/Materials | Discovered new exit (range 9) 884 | -10/Materials | Entered Mines 1080 | -10/Mines | Discovered new exit (range 9) 1114 | -10/Mines | Assisted by bots powering up and referring to "LRC-V3" 1408 | -10/Mines | Discovered new exit (range 9) 1438 | -10/Mines | Learned Materials machine intel 1547 | -10/Mines | Deemed a non-threat by the Exiles lab entrance 1547 | -10/Mines | Discovered new exit (range 5) 1552 | -10/Mines | Entered Exiles 1552 | -10/Exiles | Accompanied by 3 allies 1580 | -10/Exiles | Met 8R-AWN 1600 | -10/Exiles | Met EX-HEX 1636 | -10/Exiles | Met EX-BIN 1649 | -10/Exiles | Aligned with FarCom system 1650 | -10/Exiles | Given EX-Vault access code 1678 | -10/Exiles | Opened EX-Vault 1684 | -10/Exiles | Found Prototype Device 1685 | -10/Exiles | Identified Skeleton Box 1711 | -10/Exiles | Warned to stay clear of 0b10 Research branches 1748 | -10/Exiles | Met EX-DEC 1754 | -10/Exiles | Learned location of Zion (-7) 1818 | -10/Exiles | Visited The Gauntlet 1972 | -10/Exiles | Discovered new exit (range 14) 1986 | -10/Exiles | Left Exiles lab with Skeleton Box 1986 | -10/Exiles | Entered Mines 1986 | -9/Mines | Accompanied by 2 allies 2057 | -9/Mines | Received a Rocket Launcher from a helpful Derelict 2096 | -9/Mines | Received a Mining Laser from a helpful Derelict 2165 | -9/Mines | Found a hidden stash of uninstalled traps 2333 | -9/Mines | Discovered new exit (range 13) 2361 | -9/Mines | Identified exit to Materials 2487 | -9/Mines | Entered Materials 2487 | -8/Materials | Accompanied by 1 ally 2487 | -8/Materials | Evolved 4 slots: Propulsion x1, Utility x3 2488 | -8/Materials | Loaded intel: 51 machine locations 2815 | -8/Materials | Build established: Skirmisher 3013 | -8/Materials | Identified exit to Storage 3376 | -8/Materials | Discovered new exit (range 5) 3946 | -8/Materials | Discovered new exit (range 16) 4093 | -8/Materials | Garrison activated, responded to threat 4258 | -8/Materials | Identified exit to Garrison 4258 | -8/Materials | Entered Garrison 4300 | -8/Garrison | Triggered checkpoint 4332 | -8/Garrison | Discovered new exit (range 5) 4496 | -8/Garrison | Triggered checkpoint 4521 | -8/Garrison | Garrison Relay disabled 4834 | -8/Garrison | Triggered checkpoint 5178 | -8/Garrison | Triggered checkpoint 5199 | -8/Garrison | Garrison Relay disabled 5292 | -8/Garrison | Spotted B-75 Beast 5407 | -8/Garrison | Destroyed B-75 Beast 5500 | -8/Garrison | Garrison Relay disabled 5549 | -8/Garrison | Discovered new exit (range 19) 5586 | -8/Garrison | Build established: Mutant 5886 | -8/Garrison | Discovered new exit (range 16) 6088 | -8/Garrison | Discovered new exit (range 66) 6088 | -8/Garrison | Discovered new exit (range 72) 6088 | -8/Garrison | Discovered new exit (range 50) 6088 | -8/Garrison | Discovered new exit (range 33) 6217 | -8/Garrison | Garrison Relay disabled 6261 | -8/Garrison | Triggered checkpoint 6445 | -8/Garrison | Triggered checkpoint 6445 | -8/Garrison | Garrison Relay disabled 6788 | -8/Garrison | Core integrity fell below 50% 6857 | -8/Garrison | Phase Generator disabled 6954 | -8/Garrison | Triggered checkpoint 7001 | -8/Garrison | Garrison Relay disabled 7094 | -8/Garrison | Entered Factory 7094 | -7/Factory | Accompanied by 2 allies 7094 | -7/Factory | Evolved 2 slots: Power x1, Utility x1 7494 | -7/Factory | First assault squad dispatched 7623 | -7/Factory | Garrison activated, responded to threat 7710 | -7/Factory | Lost 9 parts (2p2n5u) 7847 | -7/Factory | Identified exit to Garrison 7847 | -7/Factory | Entered Garrison 7888 | -7/Garrison | Triggered checkpoint 7986 | -7/Garrison | Triggered checkpoint 8005 | -7/Garrison | Triggered checkpoint 8059 | -7/Garrison | Destroyed 10 combat bots 8184 | -7/Garrison | Garrison Relay disabled 8275 | -7/Garrison | Build established: Scavenger-Skirmisher 8328 | -7/Garrison | Triggered checkpoint 8539 | -7/Garrison | Triggered checkpoint 8548 | -7/Garrison | Discovered new exit (range 11) 8738 | -7/Garrison | Triggered checkpoint 8768 | -7/Garrison | Garrison Relay disabled 8970 | -7/Garrison | Discovered new exit (range 10) 9011 | -7/Garrison | Found embedded Infiltrators 9088 | -7/Garrison | Triggered checkpoint 9214 | -7/Garrison | Phase Generator disabled 9233 | -7/Garrison | Garrison Relay disabled 9409 | -7/Garrison | Build established: Scavenger-Mutant 9490 | -7/Garrison | Triggered checkpoint 9518 | -7/Garrison | Discovered new exit (range 11) 9715 | -7/Garrison | Rescued a captive Derelict 9719 | -7/Garrison | Rescued a captive Derelict 9837 | -7/Garrison | Discovered new exit (range 6) 9952 | -7/Garrison | Triggered checkpoint 9953 | -7/Garrison | Garrison Relay disabled 10034 | -7/Garrison | Entered Factory 11145 | -7/Factory | Discovered new exit (range 13) 11296 | -7/Factory | System corruption reached 10% 11398 | -7/Factory | Identified exit to Garrison 11581 | -7/Factory | Discovered new exit (range 15) 11985 | -7/Factory | Identified exit to Garrison 11985 | -7/Factory | Entered Garrison 12066 | -7/Garrison | Triggered checkpoint 12115 | -7/Garrison | Garrison Relay disabled 12330 | -7/Garrison | Triggered checkpoint 12331 | -7/Garrison | Core integrity fell below 50% 12650 | -7/Garrison | Discovered new exit (range 8) 12702 | -7/Garrison | Triggered checkpoint 12756 | -7/Garrison | Garrison Relay disabled 12798 | -7/Garrison | Build established: Hacker-Mutant 12880 | -7/Garrison | Triggered checkpoint 13060 | -7/Garrison | Triggered checkpoint 13206 | -7/Garrison | Triggered checkpoint 13211 | -7/Garrison | Core integrity fell below 20% 13242 | -7/Garrison | Destroyed 7 combat bots 13258 | -7/Garrison | Garrison Relay disabled 13312 | -7/Garrison | Discovered new exit (range 10) 13359 | -7/Garrison | Lost 3 parts (3p) 13482 | -7/Garrison | Garrison Relay disabled 13486 | -7/Garrison | Garrison Relay disabled 13539 | -7/Garrison | Destroyed by Y-54 Guardian with Gatling Laser Last Messages --------------- Knocked back. Imp. Melee Analysis Suite destroyed. C-17 Slicer destroyed. Gauss Cannon severed. C-17 Slicer suffers critical hit (Impale). C-17 Slicer destroyed. Adv. VSS Leg destroyed. Arm. Huge Wheel destroyed. Spear destroyed. Deuterium Engine lost to overload. Y-54 Guardian Lgt. Treads blown off. Y-54 Guardian Imp. Deuterium Engine blown off. Lgt. Nuclear Core lost to overload. Y-54 Guardian Imp. Heat Sink blown off. Y-54 Guardian Flak Gun blown off. Y-54 Guardian Imp. Light Armor Plating blown off. Y-54 Guardian Gatling Laser blown off. Segregator destroyed. System corrupted: Heat flow error (+241). Acquired Gatling Laser. Map ----- +----------------------------------------------------+ | ????????????????????????????????###########^^ ## | | ????????????????????????????????# | | ????????????????????????????????# | | ????????????????????????????????# ###"#"## | | ????????????????????????????????# #?### ### ## | | ????????????????????????????????# #???# #?# ## | | ??????????????????????###########[=#???# #?# ## | | ??????????????????????#=%% [=%#???# #?# #? | | ????????????????????###%#########%*#???# #?# #? | | ????????????????????# =#########[%#???# #?# #? | | ????????????????????# %" ##=*######### #? | | ????????????????????# =###### ## #? | | ???????????????? ???# #????# ## #? | | ???????????????# ???###^#????# ## ############? | | ??????????????## ###### #????# ## #???????????? | | ??????????????? # ###### ## #???????????? | | ????????????? ? # !! " " #???????????? | | ???????????#? ###!!!##### #???????????? | | ???????????# ? ##""" "#??# #???????????? | | ???????????? " ########??# #???????????? | | ????????????? """ #?????????# #???????????? | | ?????????????? " #?????????# #???????????? | | ???????????????? #?????????# #???????????? | | ????????????????? ?########## #???????????? | | ?????????????????? !! ## #???????????? | | ???????????????????#=##@ * #???????????? | | ???????????????????#==Y/ < #####!###???????????? | | ???????????????????#/### #???# ##????????????? | | ???????????????????#Y#?#####??##!%##???????????? | | ?????????????????###%#????????#%!!!#???????????? | | ?????????????????# %]#????????#!%!%#???????????? | | ?????????????????# %/#????????##!%##???????????? | | ?????????????### # # ###?????####????????????? | | ?????????????#"" ""#?????????????????????? | | ?????????????#" # # "#?????????????????????? | | ?????????????#" " " "#?????????????????????? | | ?????????????#" " " "#?????????????????????? | | ?????????????#" ! !"! "#?????????????????????? | | ?????????????## !"! ! ! ?#?????????????????????? | | ??????????????# "" !"" #??????????????????????? | | ??????????????# # # #??????????????????????? | | ??????????????# + + #??????????????????????? | | ??????????????#?#"""""#?#??????????????????????? | | ????????????????#"""""#????????????????????????? | | ?????????????????#####?????????????????????????? | | ???????????????????????????????????????????????? | | ???????????????????????????????????????????????? | | | | | | | +----------------------------------------------------+ Best States ------------- Heat Dissipation 48 Energy Generation 25 Energy Capacity 350 Matter Stores 300 Matter Capacity 300 Sight Range 20 Robot Scan Range 15 Terrain Scan Range 16 Terrain Scan Density 410 Additional Mass Support 12 Armor Coverage 300 Resistance: KI 20 Resistance: TH 35 Resistance: EX 20 Resistance: EM 20 Resistance: I 20 Resistance: S 20 Resistance: P 20 Core Shielding 30 Evasion (%) 55 Targeting Accuracy 5 Melee Accuracy 18 Core Analysis 6 Armor Integrity Analysis 30 Recoil Reduction 3 Kinecelleration 30 Salvage Targeting 2 Offensive Hacking 10 Defensive Hacking 10 Trap Extractor Capacity 4 Item Schematics ----------------- Hvy. Ion Engine | -8/Materials | Scanalyzed Robot Schematics ------------------ None Fabricated ------------ Nothing Alien Tech Used ----------------- None Achievements -------------- None Challenges ------------ None Game ------ Seed RestorationDroneGreatsword Manual? 0 Play Time 02:29:50 Cumulative 117.4 hours Start 2023.05.07 @ 22:57:57 End 2023.05.08 @ 01:42:39 Sessions 1 Manual Loads 0 Difficulty Adventurer Special Mode None Game No. 108 Rogue 72 Adventurer 36 Explorer 0 Win Type - Total 0 Types 0/0/0/0/0/0/0/0/0 Lore% 40 Gallery% 53 Achievement% 39 Wizard Run 0 Options --------- ASCII 0 Keyboard 0 Movement Mouse Keybinds 0 Fullscreen 1 Font 12/Smallcaps Map View 83x54 Tactical HUD 0 Map Filters NONE Filters NONE Steam 1 RUN: f7f4c871-d530-48dc-9e0f-c1a2375f3f85